bitfinex/quotes_ETHUSD_20260312
["timestamp","ask_amount","ask_price","bid_price","bid_amount"]
[1773312647318,1.27225145,2074.5,2073.3,5.083]
[1773312647492,1.27225145,2074.5,2072.9,4.12556767]
[1773312647493,6.03005868,2073.0,2072.9,4.12556767]
[1773312647699,1.27225145,2073.7,2073.0,1.25142932]
[1773312647964,1.27225145,2073.7,2072.9,4.08017819]
[1773312647965,0.002,2073.7,2073.2,1.25142932]
[1773312648225,0.78511268,2075.7,2074.0,1.25142932]
[1773312648226,1.27225145,2074.9,2074.0,1.25142932]
[1773312648433,1.27225145,2074.9,2074.2,1.25142932]
[1773312648926,1.27225145,2074.9,2073.9,1.25142932]
[1773312649238,1.27225145,2074.5,2073.5,2.45709046]
[1773312649468,1.27225145,2074.5,2073.5,4.83009046]
[1773312649601,1.27225145,2074.5,2073.8,1.25142932]
[1773312650551,1.27225145,2074.5,2073.9,1.20545831]
[1773312651237,0.002,2074.3,2073.9,1.20545831]
[1773312651708,0.002,2074.3,2073.9,2.73502534]
[1773312654048,0.002,2074.3,2074.0,1.52956703]
[1773312654242,0.002,2074.5,2074.0,1.52956703]
[1773312654920,0.002,2074.5,2074.1,2.7349091]
[1773312657025,0.002,2074.5,2074.2,1.52956703]
[1773312657439,0.002,2074.5,2074.2,3.91256703]
[1773312658157,0.002,2074.5,2074.2,1.52956703]
[1773312659147,0.002,2074.5,2074.0,2.73492008]
[1773312659359,6.99273564,2075.3,2074.0,2.73492008]
[1773312659360,0.78511268,2075.7,2074.6,1.56950293]
[1773312659649,0.78511268,2075.7,2075.3,1.52956703]
[1773312659650,2.174,2075.7,2075.3,1.52956703]
[1773312659850,2.174,2075.7,2075.3,3.88056703]
[1773312660452,2.174,2075.6,2075.1,2.355]
[1773312660636,3.63599807,2075.6,2075.1,2.355]
[1773312660837,3.63599807,2075.6,2075.0,2.356]
[1773312661033,3.63599807,2075.6,2074.9,1.52956703]
[1773312661034,1.46199807,2075.5,2074.9,1.20483507]
[1773312661554,1.46199807,2075.5,2074.9,3.56283507]
[1773312663223,1.46199807,2075.5,2074.9,1.20483507]
[1773312663855,2.174,2075.4,2074.9,1.20483507]
[1773312664426,2.176,2075.4,2074.9,1.20483507]
[1773312664731,2.174,2075.3,2074.8,4.81956852]
[1773312664935,2.174,2075.2,2074.8,4.81956852]
[1773312665151,3.63599807,2075.2,2074.8,4.81956852]
[1773312665353,2.174,2075.1,2074.8,1.20493541]
[1773312665858,3.63599807,2075.0,2074.5,4.82028109]
[1773312666048,1.46199807,2075.0,2074.5,4.82028109]
[1773312666353,1.46199807,2075.0,2074.5,5.06626807]
[1773312666654,1.46199807,2075.0,2074.4,1.20510966]
[1773312666655,2.174,2074.9,2074.4,4.82051604]
[1773312666856,1.46199807,2075.0,2074.4,4.82051604]
[1773312667855,2.174,2074.9,2074.5,1.52956703]
[1773312668056,2.174,2075.2,2074.6,3.14629559]
[1773312668261,1.46199807,2075.3,2074.7,1.52956703]
[1773312669456,1.46199807,2075.3,2074.8,1.20493541]
[1773312670749,1.46199807,2075.1,2074.4,4.82066918]
[1773312670948,1.46199807,2075.1,2074.5,2.381]
[1773312671164,3.63599807,2075.0,2074.4,7.20166918]
[1773312671459,1.46199807,2075.0,2074.4,7.20166918]
[1773312672046,1.46199807,2075.0,2074.4,4.82066918]
[1773312672247,2.174,2074.9,2074.4,7.20366918]
[1773312673331,2.174,2074.9,2074.4,4.82066918]
[1773312673640,2.174,2074.9,2074.3,1.20516775]
[1773312673942,1.46199807,2074.8,2074.3,1.20516775]
[1773312675861,2.174,2074.7,2074.3,1.20516775]
[1773312676451,3.63599807,2074.7,2074.3,1.20516775]
[1773312677764,3.63599807,2074.7,2074.5,0.001]
[1773312678151,1.20493743,2074.8,2074.3,1.20516775]
[1773312678152,3.63599807,2074.6,2074.3,1.20516775]
[1773312678358,3.63599807,2074.6,2074.3,1.20616775]
[1773312678747,3.63599807,2074.6,2074.3,0.001]
[1773312682069,1.46199807,2074.6,2074.3,0.001]
[1773312682283,2.174,2074.5,2074.3,0.001]
[1773312682682,3.57493437,2074.5,2074.3,0.001]
[1773312684457,1.40093437,2074.4,2074.3,0.001]
[1773312686751,1.40093437,2074.4,2074.0,4.82254474]
[1773312686956,1.40093437,2074.2,2074.0,0.001]
[1773312687183,1.40093437,2074.2,2073.8,1.20648595]
[1773312687482,3.57393437,2074.1,2073.8,0.001]
[1773312690487,1.40093437,2074.0,2073.8,0.001]
[1773312691354,3.57393437,2073.9,2073.8,0.001]
[1773312692661,1.40093437,2073.9,2073.5,0.001]
[1773312692861,3.57193437,2073.8,2073.5,0.001]
[1773312693278,3.57193437,2073.7,2073.5,0.001]
[1773312693457,1.40093437,2073.7,2073.5,0.001]
[1773312694858,3.57193437,2073.7,2073.5,0.001]
[1773312696903,1.40093437,2073.7,2073.5,0.001]
[1773312698687,3.57193437,2073.7,2073.5,0.001]
[1773312699685,2.171,2073.6,2073.5,0.001]
[1773312700799,4.77756708,2073.6,2073.5,0.001]
[1773312700998,1.40093437,2073.5,2073.3,0.001]
[1773312701296,3.57193437,2073.5,2073.3,0.001]
[1773312705503,3.57393437,2073.5,2073.3,0.001]
[1773312705998,3.5670539,2073.4,2073.3,0.001]
[1773312706603,3.5670539,2073.3,2073.1,3.10676761]
[1773312706794,1.3960539,2073.2,2073.0,1.20697597]
[1773312707200,1.3960539,2073.2,2073.0,0.001]
[1773312707803,2.171,2073.1,2073.0,0.001]
[1773312708106,3.5670539,2073.1,2073.0,0.001]
[1773312712109,1.3960539,2073.1,2073.0,0.001]
[1773312713304,3.5670539,2073.1,2073.0,0.001]
[1773312714980,3.5670539,2073.1,2072.7,0.001]
[1773312714981,1.35842354,2073.0,2072.7,0.001]
[1773312715199,1.35842354,2073.0,2072.4,0.001]
[1773312715200,1.35842354,2072.9,2072.4,0.001]
[1773312715417,1.35842354,2072.9,2072.3,2.56302043]
[1773312715418,1.61662124,2072.5,2072.1,0.001]
[1773312715581,1.35842354,2072.4,2072.1,0.001]
[1773312715785,1.35842354,2072.2,2071.7,1.20673527]
[1773312716109,1.35842354,2072.2,2071.7,2.56340271]
[1773312717119,2.171,2072.1,2071.8,1.35666744]
[1773312717415,1.35842354,2072.4,2071.8,1.35666744]
[1773312717722,2.171,2072.3,2071.9,1.20662194]
[1773312718010,3.52942354,2072.3,2072.0,0.001]
[1773312718793,1.35842354,2072.1,2072.0,0.001]
[1773312718997,1.35842354,2072.3,2072.0,0.001]
[1773312719417,2.171,2072.2,2072.0,1.35766744]
[1773312719588,2.171,2072.3,2072.1,1.20650547]
[1773312720217,1.35842354,2072.4,2072.1,1.20650547]
[1773312720423,3.52942354,2072.4,2072.1,1.20650547]
[1773312720912,2.171,2072.4,2072.1,1.35666744]
[1773312721214,3.52942354,2072.4,2072.0,1.20751784]
[1773312721415,1.35842354,2072.3,2072.0,1.20756139]
[1773312721615,2.171,2072.4,2072.0,0.001]
[1773312721817,2.171,2072.4,2072.0,1.35766744]
[1773312722890,1.35842354,2072.3,2072.0,0.001]
[1773312723315,1.35842354,2071.9,2071.5,0.001]
[1773312723490,1.35842354,2071.9,2071.5,1.20784819]
[1773312723692,1.35842354,2071.9,2071.5,0.001]
[1773312724028,1.35842354,2071.7,2071.5,0.001]
[1773312724398,1.35842354,2071.7,2071.3,1.20793911]
[1773312724597,3.52842354,2071.6,2071.3,1.20793911]
[1773312724815,1.35842354,2071.6,2071.3,1.20795997]
[1773312725116,1.35842354,2071.6,2071.3,0.001]
[1773312725526,1.35842354,2071.6,2071.3,1.20796446]
[1773312725828,1.35842354,2071.4,2071.3,0.001]
[1773312727295,1.35842354,2071.4,2070.8,1.35666744]
[1773312727297,2.169,2071.4,2070.8,1.35666744]
[1773312727844,2.169,2071.4,2071.0,1.35666744]
[1773312728325,2.56526461,2071.6,2071.0,1.35666744]
[1773312728631,1.35842354,2071.4,2070.9,1.20720459]
[1773312729207,1.20678529,2071.7,2070.9,2.56387203]
[1773312729411,2.169,2071.6,2071.1,1.35666744]
[1773312729607,2.169,2071.8,2071.2,1.20702974]
[1773312729807,2.169,2071.8,2071.0,6.4447402]
[1773312729808,1.35842354,2071.7,2071.0,1.35666744]
[1773312730105,3.52742354,2071.7,2071.0,1.35666744]
[1773312730300,3.52742354,2071.6,2071.0,1.35666744]
[1773312730703,3.52742354,2071.6,2071.2,0.001]
[1773312731009,0.002,2071.4,2071.2,0.001]
[1773312731535,2.171,2071.4,2071.2,0.001]
[1773312731701,2.171,2071.4,2071.2,1.20802974]
[1773312731901,1.58123905,2071.4,2071.2,2.56469718]
[1773312734033,0.002,2071.6,2071.2,2.56469718]
[1773312736703,0.002,2071.9,2071.4,1.14937867]
[1773312737107,1.35842354,2072.3,2071.5,3.54537867]
[1773312737333,1.35842354,2072.3,2071.5,3.54245052]
[1773312738820,1.35842354,2072.2,2071.6,1.20679667]
[1773312739018,1.35842354,2072.2,2071.2,4.82910073]
[1773312739019,1.35842354,2072.2,2071.3,1.20697146]
[1773312739236,1.35842354,2072.2,2071.3,2.8235927]
[1773312739613,1.35842354,2072.2,2071.3,2.34534863]
[1773312740013,1.35842354,2072.2,2071.5,1.13837717]
[1773312740944,1.34553847,2072.1,2071.5,1.20685493]
[1773312742234,1.34553847,2072.1,2071.5,2.33655088]
[1773312743138,1.34553847,2072.6,2071.7,1.12969595]
[1773312744231,0.002,2072.0,2071.7,1.12969595]
[1773312745252,0.002,2072.0,2071.8,1.20668018]
[1773312747225,0.002,2072.0,2071.7,1.20673263]
[1773312749554,0.002,2072.0,2071.6,5.93579505]
[1773312750164,0.002,2072.0,2071.7,0.64722837]
[1773312751247,1.34753847,2072.0,2071.6,4.82715594]
[1773312752957,1.34753847,2072.0,2071.6,1.20679667]
[1773312753965,2.5541071,2072.0,2071.6,1.20679667]
[1773312754270,1.34753847,2072.0,2071.6,1.20679667]
[1773312756183,1.34553847,2071.9,2071.5,1.2078171]
[1773312756557,1.34553847,2071.8,2071.5,0.001]
[1773312758541,1.34553847,2071.7,2071.5,0.001]
[1773312758966,1.34553847,2071.7,2071.3,0.001]
[1773312759172,1.34553847,2071.7,2071.2,1.20802551]
[1773312759343,1.34553847,2071.7,2071.2,0.001]
[1773312760076,1.34553847,2071.7,2071.2,1.20802447]
[1773312760468,1.34553847,2071.7,2071.2,0.001]
[1773312760670,1.34553847,2071.5,2071.2,0.001]
[1773312761551,1.34553847,2071.5,2071.0,0.001]
[1773312762982,1.34553847,2071.3,2071.0,0.001]
[1773312763873,2.62260709,2071.5,2071.0,0.001]
[1773312764175,1.41570769,2071.4,2071.0,0.001]
[1773312764752,1.41570769,2071.3,2071.0,0.001]
[1773312766889,2.6226891,2071.3,2071.0,0.001]
[1773312768589,1.41570769,2071.2,2071.0,0.001]
[1773312769291,2.62274126,2071.2,2071.0,0.001]
[1773312770091,1.41570769,2071.5,2071.0,1.05211874]
[1773312771202,2.62564243,2071.4,2071.0,1.05211874]
[1773312771404,1.41872924,2071.3,2071.0,2.25926227]
[1773312772287,1.41872924,2071.3,2071.0,0.001]
[1773312773179,1.41872924,2071.2,2071.0,0.001]
[1773312774000,1.41872924,2071.6,2071.0,1.0811176]
[1773312774374,3.58372924,2071.8,2071.0,1.0811176]
[1773312774570,4.79041757,2071.8,2071.2,1.07723778]
[1773312775106,1.41872924,2071.7,2071.2,1.07723778]
[1773312775400,1.41872924,2071.6,2071.0,2.28247133]
[1773312776278,1.41872924,2071.6,2071.0,2.27959981]
[1773312777602,1.41872924,2071.4,2071.0,2.27959981]
[1773312777901,1.41872924,2071.4,2071.0,1.2081073]
[1773312778406,1.41872924,2071.4,2071.0,1.06676494]
[1773312778621,2.62741237,2071.8,2071.3,1.06576494]
[1773312778782,1.41872924,2071.7,2071.3,1.06576494]
[1773312778976,1.41872924,2071.7,2071.1,1.06576494]
[1773312779470,1.41872924,2071.7,2071.2,1.20702974]
[1773312779900,1.41872924,2071.7,2071.2,2.26994235]
[1773312780082,1.41872924,2071.7,2071.3,1.06291261]
[1773312781495,1.41872924,2071.7,2071.3,1.20693352]
[1773312781812,1.20868644,2071.8,2071.3,1.20693352]
[1773312781813,0.002,2071.4,2071.3,1.20693352]
[1773312782020,0.002,2071.4,2071.2,1.20802632]
[1773312782434,0.002,2071.4,2071.2,2.26240413]
[1773312782626,1.42072924,2071.4,2071.2,0.001]
[1773312782780,1.42072924,2071.4,2070.3,1.05537781]
[1773312782781,1.41872924,2071.2,2070.3,1.05537781]
[1773312782985,2.61718733,2071.3,2070.1,1.20763602]
[1773312782986,1.41872924,2071.0,2070.1,1.20763602]
[1773312783179,1.41872924,2071.0,2070.0,1.05537781]
[1773312783401,1.41872924,2071.0,2070.1,1.61851593]
[1773312783606,1.41872924,2070.8,2070.1,1.61851593]
[1773312783808,1.41872924,2070.8,2070.1,2.67113736]
[1773312783977,1.41872924,2070.8,2070.2,1.05262143]
[1773312784184,1.41872924,2070.8,2069.7,1.05262143]
[1773312785788,1.20732119,2070.7,2069.7,1.05262143]
[1773312785986,1.41872924,2070.6,2069.7,1.05262143]
[1773312786182,1.41872924,2070.6,2069.4,4.13871412]
[1773312786387,1.41872924,2070.6,2069.6,1.61851593]
[1773312786709,1.41872924,2070.6,2069.7,1.04417621]
[1773312787097,1.41872924,2070.6,2069.4,1.04417621]
[1773312787098,1.41872924,2070.5,2069.4,1.04417621]
[1773312787925,1.41872924,2070.3,2068.9,1.04138372]
[1773312788140,1.41872924,2070.1,2069.5,2.65989965]
[1773312788428,1.41872924,2070.3,2069.6,1.04138372]
[1773312788793,1.41872924,2070.3,2069.5,1.61851593]
[1773312789659,1.41872924,2070.3,2069.4,1.03578742]
[1773312789997,1.41872924,2070.1,2069.4,1.03578742]
[1773312790544,1.41872924,2070.1,2069.1,1.03299729]
[1773312790841,1.41872924,2070.1,2069.4,1.03299729]
[1773312791199,1.41872924,2070.1,2069.3,2.64873285]
[1773312791409,1.41872924,2070.1,2069.4,1.03021692]
[1773312792425,1.41872924,2069.9,2069.4,1.03021692]
[1773312792913,1.41872924,2069.9,2069.3,2.82665129]
[1773312793304,1.41872924,2069.9,2069.2,2.23561185]
[1773312793496,1.41872924,2069.9,2069.2,3.85412778]
[1773312794098,1.20772946,2070.0,2069.5,1.02466684]
[1773312794295,1.41872924,2070.1,2069.6,2.63969748]
[1773312794642,1.20765378,2070.2,2069.6,2.63969748]
[1773312794799,2.62630598,2070.3,2069.8,2.63969748]
[1773312794998,6.99229919,2070.7,2069.8,1.02118155]
[1773312794999,1.41872924,2070.5,2069.8,1.02118155]
[1773312795394,1.41872924,2070.5,2069.9,2.63622692]
[1773312795710,1.41872924,2070.5,2070.0,1.01771099]
[1773312796217,2.62605235,2070.7,2070.1,2.63277069]
[1773312796421,2.62605235,2070.7,2070.2,1.20761279]
[1773312796600,2.62605235,2070.7,2070.1,7.4633652]
[1773312796601,2.62605235,2070.7,2070.1,2.22188996]
[1773312797828,1.41872924,2070.7,2070.1,3.84040589]
[1773312798103,2.6260525,2070.7,2070.2,1.01082564]
[1773312798297,2.6260525,2070.7,2070.1,2.82615113]
[1773312799232,1.41872924,2070.6,2070.1,2.82615113]
[1773312800410,1.41872924,2070.6,2070.1,3.82626927]
[1773312800606,1.20732326,2070.7,2070.2,1.00011814]
[1773312801139,2.60231752,2070.7,2070.2,1.00011814]
[1773312801734,2.60231752,2070.7,2070.1,2.82615113]
[1773312802033,1.39499426,2070.6,2070.1,2.82615113]
[1773312803542,1.39499426,2070.6,2070.1,3.81616755]
[1773312804715,2.60241876,2070.6,2070.1,0.99001642]
[1773312804930,2.60241876,2070.6,2070.1,2.19768252]
[1773312805134,2.60241876,2070.6,2070.1,0.99001642]
[1773312805329,2.60241876,2070.6,2070.1,2.19765939]
[1773312805525,1.39499426,2070.5,2070.1,1.20764297]
[1773312805934,2.60234623,2070.7,2070.1,2.19097657]
[1773312806133,2.60234623,2070.7,2070.2,0.9833336]
[1773312806311,1.39499426,2070.6,2070.1,2.8261589]
[1773312806844,1.39499426,2070.5,2070.0,0.9800095]
[1773312807153,1.20742367,2070.6,2070.1,2.59852543]
[1773312807342,1.39499426,2070.7,2070.2,0.97669511]
[1773312807536,0.59,2070.7,2070.2,0.97669511]
[1773312808352,1.39499426,2070.7,2070.2,0.97669511]
[1773312808951,2.60237376,2070.6,2070.1,1.20766711]
[1773312809453,2.60237376,2070.6,2070.1,2.17778678]
[1773312810560,2.60237376,2070.6,2070.1,0.97011967]
[1773312811052,2.60237376,2070.6,2070.1,2.17778838]
[1773312811241,1.39499426,2070.5,2069.7,0.96358984]
[1773312811443,1.39499426,2070.5,2070.3,0.001]
[1773312812951,1.39499426,2070.5,2070.0,0.001]
[1773312813153,2.60249039,2070.4,2070.0,0.001]
[1773312813938,0.59,2070.3,2070.0,0.001]
[1773312814463,1.98499426,2070.3,2070.0,0.001]
[1773312814665,1.20749613,2070.4,2070.1,2.57426151]
[1773312814666,0.59,2070.4,2070.1,2.57426151]
[1773312815970,0.59,2070.4,2070.0,1.20872855]
[1773312815971,3.19253311,2070.4,2070.0,1.20872855]
[1773312816171,1.98499426,2070.4,2070.0,2.15941798]
[1773312818467,1.39499426,2070.6,2070.1,1.62036584]
[1773312818638,3.36434781,2070.7,2070.2,1.34133991]
[1773312818639,3.3643519,2070.7,2070.2,1.34133991]
[1773312819265,4.75934616,2070.7,2070.2,1.34133991]
[1773312819467,1.39499426,2070.6,2070.0,0.001]
[1773312820474,1.39499426,2070.4,2070.0,0.001]
[1773312822882,2.60254872,2070.3,2070.0,0.001]
[1773312823082,1.39499426,2070.2,2070.0,0.001]
[1773312823285,1.39499426,2070.2,2069.6,3.12401634]
[1773312823466,1.39499426,2070.2,2069.4,1.85639689]
[1773312823867,1.39499426,2070.2,2069.5,1.26771056]
[1773312824069,1.35938255,2070.3,2069.9,1.26771056]
[1773312824568,1.35938255,2070.3,2069.7,1.26771056]
[1773312824996,1.35938255,2070.2,2069.8,1.20784616]
[1773312826183,1.35938255,2070.2,2069.7,1.20785604]
[1773312826375,1.36138255,2070.2,2069.7,1.20785604]
[1773312826575,1.36138255,2070.2,2070.0,0.001]
[1773312826974,2.56900893,2070.2,2070.0,0.001]
[1773312827173,1.36138255,2070.2,2070.0,0.001]
[1773312827585,1.20746255,2070.5,2070.1,1.26771056]
[1773312827889,2.56681002,2070.6,2070.1,1.26771056]
[1773312828280,1.35938255,2070.6,2070.1,1.26771056]
[1773312828513,1.35938255,2070.5,2070.1,1.26771056]
[1773312828708,1.35938255,2070.5,2070.0,0.001]
[1773312829312,1.35938255,2070.5,2070.0,1.20872946]
[1773312829721,1.35938255,2070.5,2070.0,2.47644002]
[1773312830633,2.56682455,2070.5,2070.0,2.47644002]
[1773312831221,1.28616004,2070.4,2070.0,2.47644002]
[1773312831525,1.28616004,2070.3,2070.0,0.001]
[1773312831924,1.28616004,2070.6,2070.0,0.001]
[1773312832131,1.28616004,2070.5,2070.0,0.001]
[1773312832830,1.28616004,2070.5,2070.0,1.36842561]
[1773312833730,1.28616004,2070.5,2070.0,1.20872946]
[1773312834098,1.28616004,2070.3,2069.5,1.36742561]
[1773312834429,1.28616004,2070.3,2069.5,2.98781418]
[1773312834621,1.28616004,2070.3,2069.6,1.36742561]
[1773312835001,1.28616004,2070.3,2069.8,1.36742561]
[1773312836105,1.28616004,2070.3,2069.9,1.20778781]
[1773312836310,1.28616004,2070.2,2069.9,1.20778781]
[1773312836828,1.28616004,2070.2,2069.8,6.19880008]
[1773312836829,1.28616004,2070.2,2069.7,1.36742561]
[1773312838420,2.49380335,2070.2,2069.7,2.57528224]
[1773312838740,1.28616004,2070.1,2069.7,1.20785663]
[1773312839735,1.28616004,2070.1,2069.9,0.001]
[1773312840334,2.49575481,2070.3,2069.9,0.001]
[1773312840534,2.49571644,2070.3,2069.9,0.001]
[1773312841064,0.002,2070.3,2069.9,1.36842561]
[1773312842445,0.002,2070.3,2070.0,2.57515507]
[1773312845547,0.002,2070.3,2070.0,1.36742561]
[1773312846670,0.002,2070.3,2070.0,2.57515211]
[1773312847274,0.002,2070.3,2070.1,1.36742561]
[1773312848473,1.20927148,2070.8,2070.2,1.36742561]
[1773312848642,0.002,2070.7,2070.2,1.36742561]
[1773312849247,0.002,2070.7,2070.3,1.20755446]
[1773312849476,0.002,2070.7,2070.4,1.36742561]
[1773312850876,1.20917526,2071.0,2070.6,1.36742561]
[1773312851079,0.002,2070.8,2070.6,1.36742561]
[1773312851450,0.002,2070.8,2070.6,2.57479709]
[1773312851656,0.002,2070.8,2070.6,2.57480151]
[1773312852491,0.002,2070.8,2070.6,1.36742561]
[1773312853572,0.004,2070.8,2070.6,2.57479928]
[1773312853798,0.004,2070.8,2070.6,1.36742561]
[1773312855277,0.006,2070.8,2070.6,1.36742561]
[1773312856607,1.29016004,2070.7,2070.2,2.57599772]
[1773312857310,0.004,2070.6,2070.3,1.36742561]
[1773312859292,1.28616004,2070.4,2070.2,0.001]
[1773312859489,1.28616004,2070.4,2070.0,0.001]
[1773312859703,1.28616004,2070.2,2070.0,0.001]
[1773312860214,1.28616004,2070.2,2069.7,2.57629089]
[1773312860389,0.004,2070.1,2069.7,2.57629089]
[1773312860593,1.21167112,2070.1,2069.7,0.001]
[1773312860795,1.33340726,2070.0,2069.7,0.001]
[1773312861810,0.004,2069.9,2069.7,0.001]
[1773312862017,1.33140726,2069.8,2069.7,0.001]
[1773312862512,1.33540726,2069.8,2069.2,1.3059838]
[1773312862715,1.33140726,2069.6,2069.1,1.20824509]
[1773312862916,1.33140726,2069.6,2069.1,1.3059838]
[1773312863792,0.004,2069.7,2069.4,1.3059838]
[1773312863993,1.33140726,2070.0,2069.4,1.3059838]
[1773312864305,1.20767733,2070.1,2069.4,1.3059838]
[1773312864503,0.004,2070.0,2069.4,1.3059838]
[1773312865719,0.004,2070.0,2069.5,2.51400506]
[1773312866619,0.002,2069.9,2069.6,1.3059838]
[1773312868903,3.35952453,2070.4,2069.5,1.3059838]
[1773312869100,1.33140726,2070.3,2069.6,1.3059838]
[1773312869605,1.33140726,2070.3,2069.8,0.001]
[1773312870011,1.33340726,2070.0,2069.8,0.001]
[1773312870706,1.33340726,2070.0,2069.5,6.1386019]
[1773312870707,1.33340726,2070.0,2069.5,2.51500506]
[1773312870909,1.33340726,2070.0,2069.6,1.3059838]
[1773312871108,0.002,2070.0,2069.6,1.3059838]
[1773312872920,0.002,2070.0,2069.7,2.51388832]
[1773312875506,0.002,2070.0,2069.8,1.3059838]
[1773312877335,0.002,2070.0,2069.8,2.51379591]
[1773312877731,0.002,2070.0,2069.5,2.51497859]
[1773312877732,1.12389926,2070.0,2069.5,2.51497859]
[1773312879823,1.1549838,2069.9,2069.5,2.51497859]
[1773312880214,1.1549838,2069.9,2069.5,1.20899479]
[1773312881110,1.20977214,2070.0,2069.6,1.3059838]
[1773312881314,1.15449128,2070.0,2069.6,1.3059838]
[1773312881830,1.15449128,2070.0,2069.6,2.51390686]
[1773312882025,0.002,2070.0,2069.7,1.3059838]
[1773312883965,0.002,2070.5,2070.0,1.35131045]
[1773312884271,0.002,2070.5,2070.1,1.35131045]
[1773312885520,0.002,2070.5,2070.3,1.35131045]
[1773312885954,0.002,2070.5,2070.4,1.20749613]
[1773312888232,0.002,2070.5,2070.4,2.55880658]
[1773312889755,0.002,2070.8,2070.5,1.35131045]
[1773312890563,0.002,2070.8,2070.5,2.55872768]
[1773312891151,0.03528452,2071.0,2070.6,0.64805594]
[1773312891356,0.03528452,2071.0,2070.6,1.38670203]
[1773312892570,0.002,2071.0,2070.6,1.38670203]
[1773312893046,0.002,2071.0,2070.8,1.38670203]
[1773312893543,0.002,2071.1,2070.8,1.38670203]
[1773312893544,0.002,2071.1,2070.9,1.38670203]
[1773312893764,0.002,2071.4,2071.0,1.38670203]
[1773312894141,1.20892006,2071.4,2071.0,1.38670203]
[1773312894561,1.24043327,2071.4,2071.0,1.38670203]
[1773312895175,1.24042963,2071.4,2071.0,1.38670203]
[1773312895379,0.002,2071.4,2071.1,1.38670203]
[1773312895671,1.2397589,2071.4,2071.0,1.38670203]
[1773312898474,0.002,2071.2,2071.0,1.38670203]
[1773312898669,0.002,2071.2,2071.0,2.59384421]
[1773312899483,0.002,2071.2,2071.1,1.38670203]
[1773312899667,0.002,2071.4,2071.3,2.03475797]
[1773312899978,0.002,2071.4,2071.3,1.38670203]
[1773312900957,0.002,2071.6,2071.4,1.38670203]
[1773312902081,0.002,2071.6,2071.4,2.59360474]
[1773312904687,0.002,2071.6,2071.4,1.38670203]
[1773312905968,0.02534747,2071.6,2071.0,1.38670203]
[1773312906491,0.02534747,2071.6,2070.8,4.82899514]
[1773312906672,0.02251038,2071.4,2070.8,1.38670203]
[1773312908092,0.02251038,2071.4,2070.9,2.59390662]
[1773312908297,1.229443,2071.4,2070.9,2.59390662]
[1773312910287,1.229443,2071.4,2070.9,2.59390323]
[1773312910999,1.229443,2071.4,2071.1,0.001]
[1773312911187,1.231443,2071.4,2071.1,0.001]
[1773312912267,0.01803422,2071.3,2071.1,0.001]
[1773312914703,0.01717615,2071.4,2071.1,0.001]
[1773312915017,1.22409755,2071.4,2071.1,0.001]
[1773312915311,0.01717615,2071.4,2071.1,1.38770203]
[1773312917008,1.22408998,2071.4,2071.1,1.38770203]
[1773312917613,1.22408998,2071.4,2071.1,5.27770203]
[1773312918113,0.002,2071.4,2071.2,1.38670203]
[1773312918305,0.002,2071.4,2071.3,1.38670203]
[1773312918478,0.002,2071.4,2071.1,1.20806568]
[1773312918687,0.002,2071.4,2071.2,1.38670203]
[1773312919085,0.002,2071.4,2071.1,1.2080708]
[1773312919285,0.002,2071.4,2071.1,2.59477283]
[1773312919485,0.0120798,2071.4,2071.1,0.001]
[1773312921017,1.20697146,2071.3,2071.1,0.001]
[1773312921320,0.01057448,2071.2,2071.1,0.001]
[1773312923323,0.002,2071.4,2071.1,0.001]
[1773312923523,0.00730973,2071.3,2071.1,0.001]
[1773312923729,1.20895926,2071.4,2071.1,1.38770203]
[1773312923730,0.002,2071.4,2071.1,1.38770203]
[1773312923894,0.002,2071.4,2071.3,0.001]
[1773312925898,0.002,2071.4,2071.3,1.38770203]
[1773312926419,0.002,2071.6,2071.4,1.38570203]
[1773312926927,0.002,2071.6,2071.3,1.38670203]
[1773312927532,0.002,2071.6,2071.5,2.59255696]
[1773312927936,0.002,2072.0,2071.8,2.6e-07]
[1773312928137,2.54479372,2072.2,2071.8,2.6e-07]
[1773312928354,1.33633986,2072.0,2071.3,0.001]
[1773312928516,1.33633986,2072.0,2071.3,1.20796285]
[1773312929629,2.5429618,2071.9,2071.4,1.25647874]
[1773312929826,0.002,2071.9,2071.5,1.25647874]
[1773312930027,1.33833986,2071.9,2071.5,1.25647874]
[1773312930227,1.33833986,2071.9,2071.3,1.25747874]
[1773312930427,1.33833986,2071.9,2071.3,2.46440672]
[1773312931025,1.28303118,2071.9,2071.3,2.46440672]
[1773312931721,1.33633986,2071.8,2071.3,1.25747874]
[1773312931927,1.33633986,2071.8,2071.3,2.46444007]
[1773312933957,1.33633986,2071.8,2071.4,1.25647874]
[1773312936031,2.54291441,2072.0,2071.5,1.25647874]
[1773312936223,1.33633986,2072.0,2071.5,1.25647874]
[1773312936428,2.54290778,2072.0,2071.5,1.25647874]
[1773312936629,1.33633986,2072.0,2071.5,1.25647874]
[1773312937433,2.54290807,2072.0,2071.5,1.25647874]
[1773312938333,2.54290807,2072.0,2071.5,1.25747874]
[1773312938649,0.002,2071.7,2071.5,1.25747874]
[1773312941361,0.002,2071.7,2071.5,0.001]
[1773312941362,1.33833986,2071.7,2071.5,0.001]
[1773312944367,1.36780683,2071.7,2071.3,0.001]
[1773312944531,1.36580683,2071.6,2071.3,0.001]
[1773312946547,1.20873989,2071.7,2071.3,0.34803608]
[1773312946548,1.36780683,2071.7,2071.3,0.34803608]
[1773312946753,0.002,2071.7,2071.3,7e-08]
[1773312947265,0.002,2071.7,2071.2,0.07272463]
[1773312947471,0.002,2071.7,2071.3,0.0727245]
[1773312947862,0.002,2071.7,2071.1,1.20806791]
[1773312947863,0.002,2071.7,2071.5,0.0727245]
[1773312948049,0.002,2071.9,2071.5,0.0727245]
[1773312949459,0.002,2071.9,2071.6,0.7244851]
[1773312949773,0.002,2071.9,2071.5,0.07701876]
[1773312950975,0.002,2071.9,2071.5,0.07801876]
[1773312951174,0.002,2071.7,2071.5,0.07801876]
[1773312951380,0.002,2071.9,2071.6,0.08582783]
[1773312951578,1.45530327,2072.1,2071.7,0.08582783]
[1773312951787,0.002,2072.2,2071.8,0.73329417]
[1773312951986,0.002,2072.2,2071.9,0.08582783]
[1773312952777,0.002,2072.2,2071.6,0.08782381]
[1773312952778,2.66376334,2072.2,2071.6,0.08782381]
[1773312953353,1.45730327,2072.2,2071.7,0.64746634]
[1773312953657,1.45730327,2072.2,2071.8,0.08965526]